[Event "Titled Tuesday Blitz February 22 Early 2022"]
[White "Assaubayeva, Bibisara"]
[Black "Kislov, Oleg"]
[WhiteFideId "13708694"]
[BlackFideId "13503774"]
[WhiteElo "2404"]
[BlackElo "2252"]
[Result "1-0"]
[Round "09"]
[TimeControl "180+1"]
[Date "2022.02.22"]
[WhiteClock "0:00:01"]
[BlackClock "0:00:01"]

1. d4 {[%clk 0:03:00]}  d5 {[%clk 0:02:24]} 2. c4 {[%clk 0:02:59]}  e6 {[%clk 0:02:20]} 3. Nc3 {[%clk 0:02:58]}  Nf6 {[%clk 0:02:16]} 4. cxd5 {[%clk 0:02:58]}  exd5 {[%clk 0:02:16]} 5. Bg5 {[%clk 0:02:57]}  Be7 {[%clk 0:02:16]} 6. e3 {[%clk 0:02:57]}  O-O {[%clk 0:02:15]} 7. Bd3 {[%clk 0:02:57]}  c6 {[%clk 0:02:15]} 8. Nf3 {[%clk 0:02:55]}  Re8 {[%clk 0:02:13]} 9. Qc2 {[%clk 0:02:54]}  h6 {[%clk 0:02:09]} 10. Bf4 {[%clk 0:02:50]}  Bd6 {[%clk 0:02:04]} 11. Be5 {[%clk 0:02:46]}  Bxe5 {[%clk 0:01:59]} 12. Nxe5 {[%clk 0:02:43]}  Nbd7 {[%clk 0:01:49]} 13. Nf3 {[%clk 0:02:29]}  Qe7 {[%clk 0:01:46]} 14. h3 {[%clk 0:02:27]}  Ne4 {[%clk 0:01:45]} 15. O-O {[%clk 0:02:24]}  Ndf6 {[%clk 0:01:30]} 16. Ne5 {[%clk 0:02:23]}  Nxc3 {[%clk 0:01:19]} 17. bxc3 {[%clk 0:02:22]}  c5 {[%clk 0:01:11]} 18. Rab1 {[%clk 0:02:09]}  b6 {[%clk 0:01:01]} 19. Bb5 {[%clk 0:02:05]}  Bd7 {[%clk 0:00:58]} 20. Nxd7 {[%clk 0:02:02]}  Nxd7 {[%clk 0:00:58]} 21. Qf5 {[%clk 0:02:03]}  Red8 {[%clk 0:00:50]} 22. Qxd5 {[%clk 0:01:59]}  Nf6 {[%clk 0:00:51]} 23. Qf3 {[%clk 0:01:56]}  Rac8 {[%clk 0:00:50]} 24. Bd3 {[%clk 0:01:53]}  Nd5 {[%clk 0:00:45]} 25. Rfc1 {[%clk 0:01:47]}  g6 {[%clk 0:00:39]} 26. Bc4 {[%clk 0:01:34]}  Nf6 {[%clk 0:00:31]} 27. Qf4 {[%clk 0:01:24]}  Kg7 {[%clk 0:00:30]} 28. Bb3 {[%clk 0:01:14]}  Ne4 {[%clk 0:00:28]} 29. Rc2 {[%clk 0:00:37]}  f5 {[%clk 0:00:13]} 30. f3 {[%clk 0:00:21]}  Nf6 {[%clk 0:00:11]} 31. Re1 {[%clk 0:00:14]}  c4 {[%clk 0:00:12]} 32. Ba4 {[%clk 0:00:13]}  Nd5 {[%clk 0:00:12]} 33. Qe5+ {[%clk 0:00:11]}  Qxe5 {[%clk 0:00:12]} 34. dxe5 {[%clk 0:00:12]}  a6 {[%clk 0:00:13]} 35. Rcc1 {[%clk 0:00:11]}  b5 {[%clk 0:00:13]} 36. Bd1 {[%clk 0:00:11]}  Kf7 {[%clk 0:00:11]} 37. f4 {[%clk 0:00:11]}  Ke6 {[%clk 0:00:11]} 38. Bf3 {[%clk 0:00:11]}  Nb6 {[%clk 0:00:11]} 39. e4 {[%clk 0:00:10]}  Rd3 {[%clk 0:00:10]} 40. Kf2 {[%clk 0:00:10]}  Na4 {[%clk 0:00:11]} 41. Re3 {[%clk 0:00:10]}  Rcd8 {[%clk 0:00:08]} 42. g4 {[%clk 0:00:09]}  Rxe3 {[%clk 0:00:08]} 43. Kxe3 {[%clk 0:00:09]}  Rd3+ {[%clk 0:00:09]} 44. Kf2 {[%clk 0:00:09]}  fxe4 {[%clk 0:00:08]} 45. Bxe4 {[%clk 0:00:09]}  Rd2+ {[%clk 0:00:08]} 46. Ke3 {[%clk 0:00:09]}  Rxa2 {[%clk 0:00:07]} 47. Rd1 {[%clk 0:00:08]}  Nxc3 {[%clk 0:00:07]} 48. Rd6+ {[%clk 0:00:08]}  Ke7 {[%clk 0:00:07]} 49. Bxg6 {[%clk 0:00:08]}  b4 {[%clk 0:00:07]} 50. f5 {[%clk 0:00:07]}  Re2+ {[%clk 0:00:05]} 51. Kd4 {[%clk 0:00:05]}  Nb5+ {[%clk 0:00:05]} 52. Kxc4 {[%clk 0:00:05]}  Nxd6+ {[%clk 0:00:05]} 53. exd6+ {[%clk 0:00:05]}  Kxd6 {[%clk 0:00:03]} 54. Kxb4 {[%clk 0:00:06]}  Ke5 {[%clk 0:00:03]} 55. Ka5 {[%clk 0:00:05]}  Ra2+ {[%clk 0:00:03]} 56. Kb4 {[%clk 0:00:05]}  Kf6 {[%clk 0:00:03]} 57. h4 {[%clk 0:00:05]}  Rg2 {[%clk 0:00:03]} 58. g5+ {[%clk 0:00:05]}  hxg5 {[%clk 0:00:03]} 59. hxg5+ {[%clk 0:00:06]}  Kxg5 {[%clk 0:00:03]} 60. Ka5 {[%clk 0:00:05]}  Ra2+ {[%clk 0:00:03]} 61. Kb4 {[%clk 0:00:05]}  Kf6 {[%clk 0:00:04]} 62. Kb3 {[%clk 0:00:06]}  Rf2 {[%clk 0:00:03]} 63. Kb4 {[%clk 0:00:06]}  Ra2 {[%clk 0:00:03]} 64. Kb3 {[%clk 0:00:06]}  Ra5 {[%clk 0:00:02]} 65. Kb4 {[%clk 0:00:06]}  Rb5+ {[%clk 0:00:03]} 66. Ka4 {[%clk 0:00:06]}  Re5 {[%clk 0:00:03]} 67. Kb4 {[%clk 0:00:06]}  Ke7 {[%clk 0:00:03]} 68. Ka4 {[%clk 0:00:06]}  Rd5 {[%clk 0:00:02]} 69. Kb4 {[%clk 0:00:06]}  Rd6 {[%clk 0:00:02]} 70. Ka5 {[%clk 0:00:06]}  Kd7 {[%clk 0:00:02]} 71. Bf7 {[%clk 0:00:04]}  Kc7 {[%clk 0:00:02]} 72. Be6 {[%clk 0:00:04]}  Kb7 {[%clk 0:00:01]} 73. Bc4 {[%clk 0:00:01]} 1-0


[Site "https://www.chess.com"]

[Event "Titled Tuesday Blitz February 22 Early 2022"]
[White "Atakhan, Abtin"]
[Black "Srihari L R"]
[WhiteFideId "22502203"]
[BlackFideId "46617116"]
[WhiteElo "2119"]
[BlackElo "2121"]
[Result "0-1"]
[Round "09"]
[TimeControl "180+1"]
[Date "2022.02.22"]
[WhiteClock "0:00:03"]
[BlackClock "0:01:58"]

1. Nf3 {[%clk 0:03:00]}  c5 {[%clk 0:02:59]} 2. c4 {[%clk 0:03:00]}  Nc6 {[%clk 0:02:59]} 3. Nc3 {[%clk 0:03:00]}  Nf6 {[%clk 0:02:59]} 4. g3 {[%clk 0:02:58]}  e6 {[%clk 0:02:58]} 5. Bg2 {[%clk 0:02:58]}  d5 {[%clk 0:02:59]} 6. cxd5 {[%clk 0:02:58]}  exd5 {[%clk 0:02:59]} 7. d4 {[%clk 0:02:59]}  cxd4 {[%clk 0:02:59]} 8. Nxd4 {[%clk 0:02:59]}  Bc5 {[%clk 0:02:59]} 9. Nb3 {[%clk 0:02:56]}  Bb6 {[%clk 0:02:57]} 10. O-O {[%clk 0:02:52]}  d4 {[%clk 0:02:57]} 11. Na4 {[%clk 0:02:48]}  O-O {[%clk 0:02:57]} 12. Bg5 {[%clk 0:02:20]}  h6 {[%clk 0:02:56]} 13. Nxb6 {[%clk 0:02:13]}  axb6 {[%clk 0:02:56]} 14. Bxf6 {[%clk 0:02:11]}  Qxf6 {[%clk 0:02:55]} 15. Bxc6 {[%clk 0:02:10]}  bxc6 {[%clk 0:02:55]} 16. Qxd4 {[%clk 0:02:04]}  c5 {[%clk 0:02:51]} 17. Qxf6 {[%clk 0:01:59]}  gxf6 {[%clk 0:02:50]} 18. Nd2 {[%clk 0:01:51]}  Rd8 {[%clk 0:02:42]} 19. Nc4 {[%clk 0:01:46]}  Be6 {[%clk 0:02:41]} 20. Rfc1 {[%clk 0:01:37]}  b5 {[%clk 0:02:39]} 21. Na3 {[%clk 0:01:25]}  b4 {[%clk 0:02:31]} 22. Nc4 {[%clk 0:01:25]}  Rd4 {[%clk 0:02:28]} 23. Ne3 {[%clk 0:01:14]}  Rd2 {[%clk 0:02:25]} 24. Rxc5 {[%clk 0:01:00]}  Rxb2 {[%clk 0:02:22]} 25. Rb5 {[%clk 0:00:17]}  b3 {[%clk 0:02:10]} 26. a4 {[%clk 0:00:10]}  Ra2 {[%clk 0:02:05]} 27. Rb1 {[%clk 0:00:08]}  R8xa4 {[%clk 0:02:05]} 28. Nd5 {[%clk 0:00:06]}  Ra1 {[%clk 0:01:58]} 29. Rxa1 {[%clk 0:00:02]}  Rxa1+ {[%clk 0:01:57]} 30. Kg2 {[%clk 0:00:03]}  Bxd5+ {[%clk 0:01:58]} 0-1


[Site "https://www.chess.com"]

[Event "Titled Tuesday Blitz February 22 Early 2022"]
[White "Baches Garcia, Guillermo"]
[Black "Lauridsen, Jesper Morch"]
[WhiteFideId "2209764"]
[BlackFideId "1401890"]
[WhiteElo "2390"]
[BlackElo "2290"]
[Result "1-0"]
[Round "09"]
[TimeControl "180+1"]
[Date "2022.02.22"]
[WhiteClock "0:00:14"]
[BlackClock "0:00:01"]

1. c4 {[%clk 0:03:00]}  e6 {[%clk 0:02:58]} 2. d4 {[%clk 0:02:58]}  d5 {[%clk 0:02:58]} 3. Nc3 {[%clk 0:02:57]}  c5 {[%clk 0:02:57]} 4. e3 {[%clk 0:02:54]}  Nf6 {[%clk 0:02:57]} 5. Nf3 {[%clk 0:02:54]}  a6 {[%clk 0:02:56]} 6. cxd5 {[%clk 0:02:54]}  exd5 {[%clk 0:02:56]} 7. dxc5 {[%clk 0:02:54]}  Bxc5 {[%clk 0:02:55]} 8. Be2 {[%clk 0:02:54]}  Nc6 {[%clk 0:02:54]} 9. O-O {[%clk 0:02:54]}  O-O {[%clk 0:02:54]} 10. b3 {[%clk 0:02:54]}  Re8 {[%clk 0:02:48]} 11. Bb2 {[%clk 0:02:54]}  Bg4 {[%clk 0:02:38]} 12. Nd4 {[%clk 0:02:42]}  Bxd4 {[%clk 0:02:16]} 13. Bxg4 {[%clk 0:02:36]}  Be5 {[%clk 0:02:14]} 14. Bf3 {[%clk 0:02:23]}  Qd6 {[%clk 0:01:58]} 15. g3 {[%clk 0:02:18]}  Rad8 {[%clk 0:01:58]} 16. Na4 {[%clk 0:02:06]}  Bxb2 {[%clk 0:01:52]} 17. Nxb2 {[%clk 0:02:07]}  d4 {[%clk 0:01:45]} 18. Nc4 {[%clk 0:02:03]}  Qe7 {[%clk 0:01:32]} 19. Bxc6 {[%clk 0:01:51]}  dxe3 {[%clk 0:01:32]} 20. Qf3 {[%clk 0:01:45]}  exf2+ {[%clk 0:01:26]} 21. Rxf2 {[%clk 0:01:42]}  bxc6 {[%clk 0:01:24]} 22. Qxc6 {[%clk 0:01:35]}  Ng4 {[%clk 0:01:11]} 23. Rc2 {[%clk 0:00:49]}  Rc8 {[%clk 0:01:10]} 24. Qf3 {[%clk 0:00:41]}  Ne5 {[%clk 0:00:40]} 25. Qe2 {[%clk 0:00:33]}  Nxc4 {[%clk 0:00:15]} 26. Qxe7 {[%clk 0:00:32]}  Rxe7 {[%clk 0:00:15]} 27. Rac1 {[%clk 0:00:29]}  Rec7 {[%clk 0:00:11]} 28. bxc4 {[%clk 0:00:29]}  Rc5 {[%clk 0:00:11]} 29. Kf2 {[%clk 0:00:29]}  Kf8 {[%clk 0:00:10]} 30. Ke3 {[%clk 0:00:29]}  Re5+ {[%clk 0:00:08]} 31. Kd4 {[%clk 0:00:29]}  f6 {[%clk 0:00:07]} 32. c5 {[%clk 0:00:28]}  Rd8+ {[%clk 0:00:07]} 33. Kc4 {[%clk 0:00:25]}  Re4+ {[%clk 0:00:07]} 34. Kb3 {[%clk 0:00:20]}  Re3+ {[%clk 0:00:07]} 35. Kb2 {[%clk 0:00:20]}  Rb8+ {[%clk 0:00:06]} 36. Ka1 {[%clk 0:00:20]}  Rc8 {[%clk 0:00:06]} 37. c6 {[%clk 0:00:20]}  Ke7 {[%clk 0:00:06]} 38. Rd1 {[%clk 0:00:20]}  Rc7 {[%clk 0:00:04]} 39. Rd5 {[%clk 0:00:18]}  Re6 {[%clk 0:00:04]} 40. Rdc5 {[%clk 0:00:18]}  Kd6 {[%clk 0:00:03]} 41. Kb2 {[%clk 0:00:19]}  Re4 {[%clk 0:00:03]} 42. Kb3 {[%clk 0:00:19]}  Re3+ {[%clk 0:00:03]} 43. Kb4 {[%clk 0:00:17]}  Re4+ {[%clk 0:00:03]} 44. Ka5 {[%clk 0:00:17]}  Re3 {[%clk 0:00:03]} 45. a4 {[%clk 0:00:14]}  Ra3 {[%clk 0:00:02]} 46. R5c4 {[%clk 0:00:14]}  Ra1 {[%clk 0:00:01]} 47. Kxa6 {[%clk 0:00:14]}  Kd5 {[%clk 0:00:01]} 48. a5 {[%clk 0:00:14]} 1-0


[Site "https://www.chess.com"]

[Event "Titled Tuesday Blitz February 22 Early 2022"]
[White "Barbashin, Igor"]
[Black "Mikhalsky, Vladimir"]
[WhiteFideId "4155718"]
[BlackFideId "14144352"]
[WhiteElo "2138"]
[BlackElo "2248"]
[Result "0-1"]
[Round "09"]
[TimeControl "180+1"]
[Date "2022.02.22"]
[WhiteClock "0:00:09"]
[BlackClock "0:00:18"]

1. d4 {[%clk 0:03:00]}  Nf6 {[%clk 0:02:59]} 2. c4 {[%clk 0:02:59]}  g6 {[%clk 0:02:59]} 3. Nc3 {[%clk 0:02:59]}  Bg7 {[%clk 0:02:59]} 4. Nf3 {[%clk 0:02:59]}  O-O {[%clk 0:02:59]} 5. e4 {[%clk 0:02:59]}  d6 {[%clk 0:02:59]} 6. Be2 {[%clk 0:02:59]}  e5 {[%clk 0:02:59]} 7. O-O {[%clk 0:02:59]}  Nc6 {[%clk 0:02:58]} 8. dxe5 {[%clk 0:02:59]}  dxe5 {[%clk 0:02:57]} 9. Bg5 {[%clk 0:02:58]}  Be6 {[%clk 0:02:12]} 10. Qxd8 {[%clk 0:02:35]}  Nxd8 {[%clk 0:02:01]} 11. Nd5 {[%clk 0:01:53]}  Nxe4 {[%clk 0:01:51]} 12. Nxc7 {[%clk 0:01:51]}  Nxg5 {[%clk 0:01:21]} 13. Nxa8 {[%clk 0:01:49]}  Nxf3+ {[%clk 0:01:20]} 14. gxf3 {[%clk 0:01:40]}  Nc6 {[%clk 0:01:13]} 15. Nc7 {[%clk 0:01:39]}  Bh3 {[%clk 0:01:13]} 16. Rfd1 {[%clk 0:01:33]}  Nd4 {[%clk 0:01:07]} 17. Bf1 {[%clk 0:01:18]}  Nxf3+ {[%clk 0:01:05]} 18. Kh1 {[%clk 0:01:18]}  Bg4 {[%clk 0:01:04]} 19. Nd5 {[%clk 0:01:07]}  Nd4 {[%clk 0:01:00]} 20. Rd2 {[%clk 0:01:04]}  Bh6 {[%clk 0:00:58]} 21. f4 {[%clk 0:01:04]}  Bf3+ {[%clk 0:00:50]} 22. Bg2 {[%clk 0:01:02]}  Bxd5 {[%clk 0:00:45]} 23. cxd5 {[%clk 0:00:53]}  Bxf4 {[%clk 0:00:45]} 24. Rd3 {[%clk 0:00:44]}  f5 {[%clk 0:00:39]} 25. Rf1 {[%clk 0:00:42]}  Bg5 {[%clk 0:00:34]} 26. d6 {[%clk 0:00:41]}  Rd8 {[%clk 0:00:32]} 27. Bxb7 {[%clk 0:00:37]}  Rxd6 {[%clk 0:00:31]} 28. Rfd1 {[%clk 0:00:33]}  Rb6 {[%clk 0:00:31]} 29. Bd5+ {[%clk 0:00:32]}  Kg7 {[%clk 0:00:31]} 30. b3 {[%clk 0:00:30]}  Bf6 {[%clk 0:00:31]} 31. Bc4 {[%clk 0:00:30]}  g5 {[%clk 0:00:30]} 32. a4 {[%clk 0:00:29]}  g4 {[%clk 0:00:29]} 33. a5 {[%clk 0:00:27]}  Rd6 {[%clk 0:00:29]} 34. Kg2 {[%clk 0:00:26]}  h5 {[%clk 0:00:28]} 35. b4 {[%clk 0:00:25]}  h4 {[%clk 0:00:28]} 36. b5 {[%clk 0:00:24]}  h3+ {[%clk 0:00:27]} 37. Kh1 {[%clk 0:00:20]}  f4 {[%clk 0:00:27]} 38. b6 {[%clk 0:00:18]}  axb6 {[%clk 0:00:27]} 39. a6 {[%clk 0:00:18]}  Rd7 {[%clk 0:00:26]} 40. Bb5 {[%clk 0:00:17]}  Ra7 {[%clk 0:00:25]} 41. Rxd4 {[%clk 0:00:16]}  exd4 {[%clk 0:00:24]} 42. Rc1 {[%clk 0:00:17]}  g3 {[%clk 0:00:20]} 43. hxg3 {[%clk 0:00:15]}  fxg3 {[%clk 0:00:20]} 44. Rc6 {[%clk 0:00:15]}  d3 {[%clk 0:00:19]} 45. Rxb6 {[%clk 0:00:14]}  g2+ {[%clk 0:00:18]} 46. Kh2 {[%clk 0:00:13]}  Be5+ {[%clk 0:00:18]} 47. Kxh3 {[%clk 0:00:12]}  g1=Q {[%clk 0:00:18]} 48. Rb7+ {[%clk 0:00:11]}  Rxb7 {[%clk 0:00:18]} 49. axb7 {[%clk 0:00:09]}  Qg3# {[%clk 0:00:18]} 0-1


[Site "https://www.chess.com"]

[Event "Titled Tuesday Blitz February 22 Early 2022"]
[White "Bashirli, Saadat"]
[Black "Prohorov, Olexandr"]
[WhiteFideId "13429990"]
[BlackFideId "14105578"]
[WhiteElo "1173"]
[BlackElo "1993"]
[Result "0-1"]
[Round "09"]
[TimeControl "180+1"]
[Date "2022.02.22"]
[WhiteClock "0:02:18"]
[BlackClock "0:00:51"]

1. d4 {[%clk 0:03:00]}  g6 {[%clk 0:01:16]} 2. e4 {[%clk 0:02:54]}  Bg7 {[%clk 0:01:15]} 3. Nc3 {[%clk 0:02:52]}  d6 {[%clk 0:01:15]} 4. Be2 {[%clk 0:02:52]}  Nf6 {[%clk 0:01:13]} 5. h4 {[%clk 0:02:51]}  h5 {[%clk 0:01:13]} 6. Nf3 {[%clk 0:02:51]}  c6 {[%clk 0:01:12]} 7. O-O {[%clk 0:02:51]}  Qc7 {[%clk 0:01:11]} 8. Ng5 {[%clk 0:02:50]}  b5 {[%clk 0:01:06]} 9. a3 {[%clk 0:02:48]}  Nbd7 {[%clk 0:01:03]} 10. Bf4 {[%clk 0:02:47]}  e5 {[%clk 0:01:01]} 11. dxe5 {[%clk 0:02:46]}  dxe5 {[%clk 0:01:01]} 12. Be3 {[%clk 0:02:43]}  O-O {[%clk 0:01:01]} 13. Bc5 {[%clk 0:02:42]}  Nxc5 {[%clk 0:00:59]} 14. Bf3 {[%clk 0:02:39]}  Ne6 {[%clk 0:00:59]} 15. Nxe6 {[%clk 0:02:35]}  Bxe6 {[%clk 0:00:58]} 16. b3 {[%clk 0:02:33]}  Bg4 {[%clk 0:00:57]} 17. Qe2 {[%clk 0:02:33]}  Bxf3 {[%clk 0:00:57]} 18. Qxf3 {[%clk 0:02:33]}  Rfd8 {[%clk 0:00:51]} 19. Rad1 {[%clk 0:02:33]}  Rd6 {[%clk 0:00:51]} 20. Rxd6 {[%clk 0:02:28]}  Qxd6 {[%clk 0:00:52]} 21. Rd1 {[%clk 0:02:28]}  Qe7 {[%clk 0:00:52]} 22. b4 {[%clk 0:02:27]}  Rd8 {[%clk 0:00:51]} 23. Re1 {[%clk 0:02:27]}  Rd4 {[%clk 0:00:51]} 24. Qe3 {[%clk 0:02:26]}  Ng4 {[%clk 0:00:50]} 25. Qe2 {[%clk 0:02:25]}  Bh6 {[%clk 0:00:51]} 26. Rd1 {[%clk 0:02:21]}  Qd6 {[%clk 0:00:51]} 27. Rxd4 {[%clk 0:02:21]}  Qxd4 {[%clk 0:00:52]} 28. Kf1 {[%clk 0:02:18]}  Qxc3 {[%clk 0:00:51]} 0-1


[Site "https://www.chess.com"]

[Event "Titled Tuesday Blitz February 22 Early 2022"]
[White "Bortnyk, Olexandr"]
[Black "Indjic, Aleksandar"]
[WhiteFideId "14120828"]
[BlackFideId "911925"]
[WhiteElo "2723"]
[BlackElo "2616"]
[Result "0-1"]
[Round "09"]
[TimeControl "180+1"]
[Date "2022.02.22"]
[WhiteClock "0:00:08"]
[BlackClock "0:00:12"]

1. e4 {[%clk 0:03:00]}  d6 {[%clk 0:02:59]} 2. d4 {[%clk 0:03:00]}  Nf6 {[%clk 0:02:59]} 3. Nc3 {[%clk 0:02:59]}  e5 {[%clk 0:03:00]} 4. Nf3 {[%clk 0:02:54]}  Nbd7 {[%clk 0:02:58]} 5. Bc4 {[%clk 0:02:48]}  Be7 {[%clk 0:02:57]} 6. O-O {[%clk 0:02:48]}  h6 {[%clk 0:02:56]} 7. Qe2 {[%clk 0:02:47]}  c6 {[%clk 0:02:56]} 8. Rd1 {[%clk 0:02:46]}  Qc7 {[%clk 0:02:56]} 9. a4 {[%clk 0:02:46]}  g5 {[%clk 0:02:55]} 10. d5 {[%clk 0:02:30]}  Nf8 {[%clk 0:02:49]} 11. a5 {[%clk 0:02:25]}  Ng6 {[%clk 0:02:47]} 12. Ne1 {[%clk 0:01:53]}  Nf4 {[%clk 0:02:22]} 13. Qf1 {[%clk 0:01:45]}  cxd5 {[%clk 0:02:17]} 14. Bxd5 {[%clk 0:01:41]}  N4xd5 {[%clk 0:02:14]} 15. Nxd5 {[%clk 0:01:42]}  Nxd5 {[%clk 0:02:14]} 16. Rxd5 {[%clk 0:01:41]}  Be6 {[%clk 0:02:13]} 17. Rd1 {[%clk 0:01:35]}  a6 {[%clk 0:02:12]} 18. b3 {[%clk 0:01:27]}  Qc6 {[%clk 0:02:11]} 19. Qd3 {[%clk 0:01:23]}  O-O {[%clk 0:01:59]} 20. c4 {[%clk 0:01:11]}  f5 {[%clk 0:02:00]} 21. exf5 {[%clk 0:01:12]}  Rxf5 {[%clk 0:01:54]} 22. Be3 {[%clk 0:01:05]}  Raf8 {[%clk 0:01:52]} 23. Ra2 {[%clk 0:01:05]}  h5 {[%clk 0:01:41]} 24. Rad2 {[%clk 0:00:59]}  g4 {[%clk 0:01:40]} 25. Nc2 {[%clk 0:00:56]}  Kg7 {[%clk 0:00:29]} 26. Nb4 {[%clk 0:00:49]}  Qc8 {[%clk 0:00:29]} 27. Qe4 {[%clk 0:00:40]}  R8f7 {[%clk 0:00:20]} 28. Nd5 {[%clk 0:00:25]}  Bxd5 {[%clk 0:00:20]} 29. Rxd5 {[%clk 0:00:25]}  Bf8 {[%clk 0:00:21]} 30. c5 {[%clk 0:00:21]}  dxc5 {[%clk 0:00:21]} 31. Rxe5 {[%clk 0:00:21]}  Qc6 {[%clk 0:00:20]} 32. Qxf5 {[%clk 0:00:17]}  Rxf5 {[%clk 0:00:20]} 33. Rxf5 {[%clk 0:00:17]}  Qe6 {[%clk 0:00:13]} 34. Rg5+ {[%clk 0:00:13]}  Kf6 {[%clk 0:00:12]} 35. Rxh5 {[%clk 0:00:11]}  Qxb3 {[%clk 0:00:12]} 36. h3 {[%clk 0:00:09]}  Qxd1+ {[%clk 0:00:11]} 37. Kh2 {[%clk 0:00:08]}  g3+ {[%clk 0:00:12]} 0-1


[Site "https://www.chess.com"]

[Event "Titled Tuesday Blitz February 22 Early 2022"]
[White "Chernomordik, Pavel"]
[Black "Barp, Alberto"]
[WhiteFideId "2804530"]
[BlackFideId "872555"]
[WhiteElo "2249"]
[BlackElo "2229"]
[Result "0-1"]
[Round "09"]
[TimeControl "180+1"]
[Date "2022.02.22"]
[WhiteClock "0:00:01"]
[BlackClock "0:00:07"]

1. e4 {[%clk 0:03:00]}  c6 {[%clk 0:02:58]} 2. Nc3 {[%clk 0:03:00]}  d5 {[%clk 0:02:59]} 3. Qf3 {[%clk 0:03:00]}  Nf6 {[%clk 0:02:55]} 4. d3 {[%clk 0:02:59]}  g6 {[%clk 0:02:49]} 5. Bd2 {[%clk 0:02:53]}  Bg7 {[%clk 0:02:48]} 6. h3 {[%clk 0:02:52]}  O-O {[%clk 0:02:47]} 7. O-O-O {[%clk 0:02:51]}  e5 {[%clk 0:02:45]} 8. g4 {[%clk 0:02:48]}  Be6 {[%clk 0:02:45]} 9. Kb1 {[%clk 0:02:43]}  Na6 {[%clk 0:02:40]} 10. Qg3 {[%clk 0:02:41]}  d4 {[%clk 0:02:34]} 11. Nce2 {[%clk 0:02:38]}  Nd7 {[%clk 0:02:34]} 12. f4 {[%clk 0:02:34]}  f6 {[%clk 0:02:20]} 13. Nf3 {[%clk 0:02:34]}  Qb6 {[%clk 0:02:16]} 14. fxe5 {[%clk 0:02:24]}  fxe5 {[%clk 0:02:14]} 15. Ng5 {[%clk 0:02:23]}  Nac5 {[%clk 0:02:11]} 16. Nxe6 {[%clk 0:02:22]}  Nxe6 {[%clk 0:02:12]} 17. h4 {[%clk 0:02:18]}  Ndc5 {[%clk 0:02:09]} 18. g5 {[%clk 0:02:09]}  Na4 {[%clk 0:02:04]} 19. Bc1 {[%clk 0:02:06]}  Nf4 {[%clk 0:02:02]} 20. Ka1 {[%clk 0:01:59]}  Rf7 {[%clk 0:01:49]} 21. Nxf4 {[%clk 0:01:49]}  Rxf4 {[%clk 0:01:36]} 22. h5 {[%clk 0:01:46]}  Raf8 {[%clk 0:01:30]} 23. hxg6 {[%clk 0:01:41]}  hxg6 {[%clk 0:01:31]} 24. Qh3 {[%clk 0:01:40]}  c5 {[%clk 0:01:29]} 25. Be2 {[%clk 0:01:34]}  Kf7 {[%clk 0:01:16]} 26. Rhf1 {[%clk 0:01:30]}  Rxf1 {[%clk 0:01:03]} 27. Qd7+ {[%clk 0:01:23]}  Kg8 {[%clk 0:01:00]} 28. Bxf1 {[%clk 0:01:20]}  Qc6 {[%clk 0:00:56]} 29. Bh3 {[%clk 0:01:18]}  Rf3 {[%clk 0:00:42]} 30. Be6+ {[%clk 0:01:12]}  Kf8 {[%clk 0:00:41]} 31. Qxc6 {[%clk 0:00:46]}  bxc6 {[%clk 0:00:40]} 32. Bd7 {[%clk 0:00:44]}  Nb6 {[%clk 0:00:35]} 33. Bxc6 {[%clk 0:00:43]}  Rf2 {[%clk 0:00:34]} 34. Kb1 {[%clk 0:00:43]}  c4 {[%clk 0:00:33]} 35. Bd2 {[%clk 0:00:38]}  Ke7 {[%clk 0:00:30]} 36. Bb4+ {[%clk 0:00:36]}  Kd8 {[%clk 0:00:30]} 37. Bc5 {[%clk 0:00:30]}  Kc7 {[%clk 0:00:28]} 38. Be8 {[%clk 0:00:23]}  Na4 {[%clk 0:00:21]} 39. Be7 {[%clk 0:00:17]}  Nb6 {[%clk 0:00:10]} 40. Bxg6 {[%clk 0:00:14]}  Kd7 {[%clk 0:00:10]} 41. Bc5 {[%clk 0:00:13]}  cxd3 {[%clk 0:00:09]} 42. cxd3 {[%clk 0:00:12]}  Rg2 {[%clk 0:00:09]} 43. Bf5+ {[%clk 0:00:09]}  Kc6 {[%clk 0:00:09]} 44. Bxb6 {[%clk 0:00:07]}  Kxb6 {[%clk 0:00:08]} 45. g6 {[%clk 0:00:07]}  Bh6 {[%clk 0:00:08]} 46. a4 {[%clk 0:00:06]}  Rh2 {[%clk 0:00:08]} 47. Rg1 {[%clk 0:00:04]}  Bg7 {[%clk 0:00:08]} 48. b4 {[%clk 0:00:04]}  a5 {[%clk 0:00:08]} 49. b5 {[%clk 0:00:03]}  Kc5 {[%clk 0:00:08]} 50. Rc1+ {[%clk 0:00:04]}  Kb4 {[%clk 0:00:08]} 51. b6 {[%clk 0:00:04]}  Kb3 {[%clk 0:00:07]} 52. Be6+ {[%clk 0:00:03]}  Ka3 {[%clk 0:00:07]} 53. b7 {[%clk 0:00:04]}  Rb2+ {[%clk 0:00:07]} 54. Ka1 {[%clk 0:00:03]}  Rxb7 {[%clk 0:00:08]} 55. Bc4 {[%clk 0:00:01]}  Kxa4 {[%clk 0:00:07]} 0-1


[Site "https://www.chess.com"]